Cogmind - Beta 15 @@@ ROGUE MODE // 2025.05.12 @ 17:43:46 Player: Ciaphas Result: Destroyed by as-67426 with Assembled Heavy Rifle Performance ------------- Evolutions (1) 500 Regions Visited (4) 800 Robots Destroyed (43) 215 Value Destroyed (919) 919 Prototype IDs (3) 60 Alien Tech Used (0) 0 Bonus (152) 152 TOTAL SCORE: 2646 Bonus ------- Follower Combat Kills 152 Cogmind --------- Core Integrity 0/400 Matter 184/300 Energy 164/250 System Corruption 0% Temperature Cool (9) Movement Flying (34) Location -9/Mines Parts ------- > --- POWER (1) -------- Ion Engine > --- PROPULSION (3) --- Improved Flight Unit Improved Flight Unit Improved Flight Unit > --- UTILITY (3) ------ Structural Scanner > --- WEAPON (2) ------- Rocket Launcher > --- INVENTORY (5) ---- Light Treads Light Treads Improved Flight Unit Improved Flight Unit Heavy Assault Rifle Peak State ------------ > --- POWER ------------ Improved Ion Engine > --- PROPULSION ------- Improved Treads Improved Treads Improved Treads > --- UTILITY ---------- High-capacity Storage Unit Structural Scanner Light Armor Plating > --- WEAPON ----------- Small Laser Heavy Assault Rifle > --- INVENTORY -------- Ion Engine Light Treads Improved Flight Unit Improved Flight Unit Improved Flight Unit Improved Flight Unit Improved Flight Unit Heat Sink Medium Storage Unit ECM Suite [Rating: 16] Favorites ----------- Power Light Ion Engine Engine Light Ion Engine Propulsion Aluminum Leg Treads Improved Treads Leg Aluminum Leg Flight Unit Improved Flight Unit Utility Structural Scanner Device Structural Scanner Storage Small Storage Unit Protection Light Armor Plating Weapon Assault Rifle Energy Gun Small Laser Ballistic Gun Assault Rifle Launcher Rocket Launcher Build | -11 -10 -10 -9 -9 ------- Run | Yrd Mat Min Mat Min Slots Evolved 2 | . . . 2 . Power . | . . . . . Propulsion 1 | . . . 1 . Utility 1 | . . . 1 . Weapon . | . . . . . Parts Attached 34 | . 3 1 24 6 Power 5 | . . . 3 2 Engine 5 | . . . 3 2 Core . | . . . . . Reactor . | . . . . . Propulsion 15 | . 1 1 10 3 Treads 9 | . . . 9 . Leg 2 | . 1 1 . . Wheel . | . . . . . Hover . | . . . . . Flight 4 | . . . 1 3 Utility 8 | . 2 . 5 1 Device 3 | . 2 . 1 . Storage 2 | . . . 2 . Processor . | . . . . . Hackware . | . . . . . Protection 3 | . . . 2 1 Artifact . | . . . . . Weapon 6 | . . . 6 . Energy Gun 1 | . . . 1 . Energy Cannon . | . . . . . Ballistic Gun 3 | . . . 3 . Ballistic Cannon . | . . . . . Launcher 2 | . . . 2 . Special Weapon . | . . . . . Impact Weapon . | . . . . . Slashing Weapon . | . . . . . Piercing Weapon . | . . . . . Special Melee Weapon . | . . . . . Unidentified Prototypes 1 | . . . 1 . Parts Lost 14 | . . . 10 4 Power 3 | . . . 2 1 Propulsion 2 | . . . 1 1 Utility 5 | . . . 4 1 Weapon 4 | . . . 3 1 Highest Loss Streak 5 | . . . 5 4 To Critical Strikes . | . . . . . Average Backups 7 | 6 5 5 8 8 Power . | 1 1 1 . . Propulsion 4 | 4 3 2 5 4 Utility 1 | . . 1 1 . Weapon . | 1 . 1 . 1 Tool/Special . | . . . . . Unused Backups 17 | . 9 . 6 2 Power 3 | . 1 . 2 . Propulsion 7 | . 4 . 2 1 Utility 2 | . 1 . . 1 Weapon 5 | . 3 . 2 . Tool/Special . | . . . . . Average Slot Usage (%) 94 | . 98 100 93 90 Engine 11 | . 14 14 10 11 Treads 17 | . . . 24 30 Leg 11 | . 28 28 5 . Device 13 | . 12 14 15 11 Storage 11 | . 14 14 11 10 Protection 3 | . . . 4 4 Energy Gun 1 | . . . 2 . Ballistic Gun 21 | . 28 28 17 17 Launcher 1 | . . . . 3 Peak Build Rating 16 | 6 7 7 16 15 Average Rating 10 | 6 6 7 12 13 On Entrance 7 | 6 6 7 7 13 Naked Turns . | . . . . . Heaviest Build 57 | 11 12 12 56 57 Greatest Support 69 | 20 20 20 69 63 Greatest Overweight (x) 1 | . . . 1 1 Average Overweight (x) . | . . . . . Largest Inventory Capacity 20 | 8 8 8 20 20 Average Capacity 13 | 8 8 8 14 19 Most Carried 12 | 6 8 6 12 9 Average Carried 7 | 6 5 5 8 8 Final Capacity 20 | 8 8 8 20 5 Final Carried 8 | 6 5 5 8 5 Class Distribution -------------------- 57% | Mutant 34% | Scavenger-Mutant 7% | Infiltrator-Mutant Dominant Class ---------------- Mutant | -10/Materials Mutant | -10/Mines Mutant | -9/Materials Scavenger-Mutant | -9/Mines Resources | -11 -10 -10 -9 -9 ----------- Run | Yrd Mat Min Mat Min Matter Collected 1081 | 232 93 34 366 356 Remotely . | . . . . . Salvage Created 1239 | 77 170 42 890 60 Parts 89 | 6 17 1 58 7 Haulers Intercepted 2 | . . . 2 . Recyclers Shooed 7 | . 1 1 5 . Parts Field Recycled . | . . . . . Retrieved Matter . | . . . . . Parts Self-Destructed . | . . . . . Prevented . | . . . . . Kills | -11 -10 -10 -9 -9 ------- Run | Yrd Mat Min Mat Min Combat Hostiles Destroyed 38 | . 5 1 17 15 Guns 18 | . 5 1 12 . AOE 20 | . . . 5 15 Classes Destroyed 11 | 2 3 . 5 1 Worker 4 | . . . 4 . Builder 2 | . . . 1 1 Tunneler 2 | 1 . . . 1 Hauler 2 | . . . 2 . Recycler 3 | 1 . . 2 . Operator 1 | . . . 1 . Watcher 2 | . 1 . 1 . Swarmer 10 | . 3 . 3 4 Grunt 13 | . 2 1 10 . Sentry 4 | . . . 4 . Assembled 11 | . . . . 11 Best Kill Streak 11 | 2 5 1 6 11 Combat Bots Only 11 | . 4 1 4 11 Max Kills in Single Turn 4 | 1 1 1 4 4 Gunslinging . | . . . . . Exploded 4 | . . . 2 4 Melee . | . . . . . Uniques/NPCs Destroyed . | . . . . . Combat | -11 -10 -10 -9 -9 -------- Run | Yrd Mat Min Mat Min Hostile Shots Fired 220 | . 18 3 164 35 Missed 68 | . 7 . 46 15 Hits 152 | . 11 3 118 20 Projectile 152 | . 11 3 118 20 Critical Strikes 4 | . . . 4 . Damage Taken 2166 | . 106 51 1573 436 Core 417 | . 12 . 292 113 Absorbed by Shields . | . . . . . Core Remaining (%) 97 | 100 . 95 . . Volleys Fired 111 | 8 20 3 73 7 Largest 2 | 2 2 2 2 2 Hottest 66 | 40 40 40 66 66 Shots Fired 211 | 16 40 6 138 11 Gun 192 | 16 40 6 130 . Cannon . | . . . . . Launcher 19 | . . . 8 11 Special . | . . . . . Kinetic 174 | 16 40 6 112 . Thermal 18 | . . . 18 . Explosive 19 | . . . 8 11 Electromagnetic . | . . . . . Robot Hit Streak 13 | 7 4 4 13 1 Robot Miss Streak 4 | 4 4 1 4 2 Penetration Max . | . . . . . Secondary Targets 3 | . . . 3 . Max Gunslinging Chain 1 | . . . 1 . Shots Hit Robots 118 | 10 22 4 80 2 Core Hits 81 | 4 10 3 42 22 Critical Kills 1 | . 1 . . . Critical Parts Destroyed . | . . . . . Critical Strikes 1 | . 1 . . . Destroy 1 | . 1 . . . Melee Attacks . | . . . . . Impact . | . . . . . Slashing . | . . . . . Piercing . | . . . . . Sneak Attacks . | . . . . . Combat Hostiles . | . . . . . Follow-up Attacks . | . . . . . Damage Inflicted 3488 | 104 221 66 2056 1041 Guns 1397 | 104 219 53 1021 . Cannons . | . . . . . Explosions 1996 | . . . 980 1016 Melee . | . . . . . Ramming 95 | . 2 13 55 25 Kinetic 1280 | 104 219 53 904 . Thermal 672 | . . . 672 . Explosive 1441 | . . . 425 1016 Electromagnetic . | . . . . . Impact . | . . . . . Slashing . | . . . . . Piercing . | . . . . . Highest Corruption . | . . . . . Average Corruption . | . . . . . Corruption Purged . | . . . . . Corruption Blocked . | . . . . . Overload Shots . | . . . . . Overflow Damage 186 | . . . 124 62 Projectiles . | . . . . . Explosions 186 | . . . 124 62 Melee . | . . . . . Knockbacks . | . . . . . Impact . | . . . . . Kinetic . | . . . . . Secondary . | . . . . . Self-Inflicted Damage 188 | . . . 15 173 Shots 7 | . . . 1 6 Rammed 4 | . . . 3 1 Targets Rammed 14 | . 1 3 7 3 Kicked 6 | . 1 3 2 . Crushed 4 | . . . 2 2 Highest Temperature 114 | . 6 18 114 18 Average Temperature 24 | . 6 12 27 10 Received Heat Transfer 681 | . 24 27 630 . Siege Activations . | . . . . . Martial Activations . | . . . . . Shielding Activations . | . . . . . Robots Disrupted . | . . . . . Combat Hostiles . | . . . . . Robots Corrupted . | . . . . . Combat Hostiles . | . . . . . Parts Fried . | . . . . . Impact Corruptions . | . . . . . Robots Melted . | . . . . . Combat Hostiles . | . . . . . Parts Melted . | . . . . . Heat Transferred 625 | . . . 625 . Parts Sabotaged . | . . . . . Parts Stolen . | . . . . . Parts Stripped . | . . . . . Power Chain Reactions . | . . . . . Alert | -11 -10 -10 -9 -9 ------- Run | Yrd Mat Min Mat Min Maximum Alert Level 1 | . . . 1 1 Low Security (%) 85 | 100 100 100 86 60 Level 1 14 | . . . 13 39 Level 2 . | . . . . . Level 3 . | . . . . . Level 4 . | . . . . . Level 5 . | . . . . . High Security . | . . . . . Max Security . | . . . . . Peak Influence 314 | 5 87 33 314 264 Initial 112 | . 3 . . 112 Average 71 | 4 27 7 72 151 Influence Increases 1258 | 10 142 56 668 382 Destroy 0b10 Robot/C 660 | . 100 40 340 180 Destroy 0b10 Robot/NC 80 | 10 5 . 55 10 Destroy Leader 148 | . 22 10 86 30 Allied During Kill 26 | . . 6 4 16 Successful Hack 27 | . 15 . 12 . Disable Machine 90 | . . . 45 45 Destroy Structure 152 | . . . 51 101 Lose Combat Pursuer 75 | . . . 75 . Influence Decreases 1024 | 5 144 59 378 438 Entered New Map 183 | . 2 3 . 178 Time Decay 631 | 5 142 43 261 180 Lost Part 117 | . . . 77 40 Lost Ally 93 | . . 13 40 40 Squads Dispatched 3 | . 1 . 1 1 Investigation . | . . . . . Extermination . | . . . . . Reinforcement 3 | . 1 . 1 1 Assault . | . . . . . Garrison . | . . . . . Intercept . | . . . . . Searches Triggered . | . . . . . Construction Impeded 1 | . . . . 1 Haulers Reinforced . | . . . . . Active Scanning Responses . | . . . . . Cargo Convoy Interrupts . | . . . . . Stealth | -11 -10 -10 -9 -9 --------- Run | Yrd Mat Min Mat Min Distress Signals 6 | . 1 . 5 . Communications Jammed . | . . . . . Distress Signals . | . . . . . Times Spotted 69 | . 10 2 35 22 Peak Tracking Total 9 | . 5 2 7 9 Tactical Retreats 7 | . . . 5 2 Traps | -11 -10 -10 -9 -9 ------- Run | Yrd Mat Min Mat Min Traps Triggered . | . . . . . Indirectly . | . . . . . Trap Hack Attempts . | . . . . . Triggered . | . . . . . Disarmed 6 | . 6 . . . Reprogrammed . | . . . . . Reused . | . . . . . Traps Extracted . | . . . . . Installed . | . . . . . Triggered . | . . . . . Machines | -11 -10 -10 -9 -9 ---------- Run | Yrd Mat Min Mat Min Machines Disabled 6 | . . . 3 3 Max in Single Turn 2 | . . . 2 . Machines Repaired . | . . . . . Machines Dismantled . | . . . . . Machines Sabotaged . | . . . . . Overloaded Fab Kills . | . . . . . Hacking | -11 -10 -10 -9 -9 --------- Run | Yrd Mat Min Mat Min Machines Accessed 6 | . 4 . 2 . Terminals 5 | . 3 . 2 . Fabricators . | . . . . . Repair Stations . | . . . . . Recycling Units 1 | . 1 . . . Scanalyzers . | . . . . . Garrison Access . | . . . . . Total Hacks 20 | . 16 . 4 . Successful 10 | . 7 . 3 . Failed 10 | . 9 . 1 . Catastrophic . | . . . . . Database Lockouts . | . . . . . Manual 14 | . 10 . 4 . Terminals 19 | . 15 . 4 . Fabricators . | . . . . . Repair Stations . | . . . . . Recycling Units 1 | . 1 . . . Scanalyzers . | . . . . . Garrison Access . | . . . . . Terminal Hacks 7 | . 5 . 2 . Prototype ID Bank 1 | . 1 . . . Branch Access Points 2 | . 1 . 1 . Alert Level 1 | . . . 1 . Locate Traps 1 | . 1 . . . Disarm Traps 1 | . 1 . . . Hauler Manifests 1 | . 1 . . . Fabricator Hacks . | . . . . . Repair Station Hacks . | . . . . . Recycling Unit Hacks 1 | . 1 . . . Report Inventory 1 | . 1 . . . Scanalyzer . | . . . . . Garrison Access Hacks . | . . . . . Unauthorized Hacks 2 | . 1 . 1 . Terminals 2 | . 1 . 1 . Botnet 2 | . 1 . 1 . Fabricators . | . . . . . Repair Stations . | . . . . . Recycling Units . | . . . . . Scanalyzers . | . . . . . Garrison Access . | . . . . . Data Cores Recovered . | . . . . . Used . | . . . . . Hacking Detections 4 | . 3 . 1 . Full Trace Events . | . . . . . Feedback Events . | . . . . . Feedback Blocked . | . . . . . Robot Schematics Acquired . | . . . . . Robots Built . | . . . . . Authchips . | . . . . . Time . | . . . . . Total Robot Build Rating . | . . . . . Part Schematics Acquired . | . . . . . Parts Built . | . . . . . Authchips . | . . . . . Time . | . . . . . Total Part Build Rating . | . . . . . Parts Repaired . | . . . . . Time . | . . . . . Parts Recycled . | . . . . . Recycled Matter . | . . . . . Retrieved Matter . | . . . . . Retrieved Components . | . . . . . Parts Scanalyzed . | . . . . . Part Schematics Acquired . | . . . . . Parts Damaged . | . . . . . Bothacking | -11 -10 -10 -9 -9 ------------ Run | Yrd Mat Min Mat Min Used RIF Installer . | . . . . . Robots Hacked . | . . . . . Non-combat . | . . . . . Combat . | . . . . . Robot Hacks Applied . | . . . . . Relay Couplers Released . | . . . . . Fabnet Peak Effective % . | . . . . . Robots Rewired . | . . . . . Allies Hacked . | . . . . . Hacks Repelled . | . . . . . Allies | -11 -10 -10 -9 -9 -------- Run | Yrd Mat Min Mat Min Total Allies 5 | . . 3 . 2 Largest Group 3 | . . 3 2 2 Highest-Rated Group 42 | . . 40 24 42 Highest-Rated Ally 31 | . . 16 16 31 Total Orders . | . . . . . Ally Attacks 45 | . . 8 19 18 Total Damage 522 | . . 107 142 273 Kills 6 | . . 1 . 5 Allies Corrupted . | . . . . . Allies Melted . | . . . . . Intel | -11 -10 -10 -9 -9 ------- Run | Yrd Mat Min Mat Min Active Infowar (turns) 1681 | . 380 166 763 372 Sensors 274 | . 115 . 159 . Structural 1566 | . 265 166 763 372 ECM 121 | . . . 121 . Robot Analysis Total . | . . . . . Derelict Logs Recovered . | . . . . . Drone Launches . | . . . . . Drone Recoveries . | . . . . . Exploration | -11 -10 -10 -9 -9 ------------- Run | Yrd Mat Min Mat Min Turns Passed 1741 | 39 401 166 763 372 Spaces Moved 980 | 14 269 117 325 255 Core . | . . . . . Treads 420 | . . . 228 192 Legs 497 | 14 269 117 97 . Wheels . | . . . . . Hover . | . . . . . Flight 63 | . . . . 63 Fastest Speed 34 | 120 120 120 120 34 Average Speed 131 | 120 120 120 148 129 Slowest Speed 240 | 120 120 120 240 240 Overloaded Moves . | . . . . . Propulsion Burnouts . | . . . . . Robots Hopped . | . . . . . Potential Cave-ins . | . . . . . Cave-ins Triggered . | . . . . . Exploration Rate (%) 29 | 3 45 18 28 55 Regions Visited 4 Branch Regions 2 Pre-discovered Areas . | . . . . . Known Exits Taken 2 | . 1 . 1 . Unknown Exits Taken 2 | 1 . 1 . . Scrap Searched 2 | . . 1 . 1 Spaces Dug . | . . . . . Terrain Destroyed 180 | . . . 53 127 Melee . | . . . . . Projectile . | . . . . . AOE 180 | . . . 53 127 Terrain Rammed . | . . . . . Walls Destroyed . | . . . . . Machines Disabled . | . . . . . Actions | -11 -10 -10 -9 -9 --------- Run | Yrd Mat Min Mat Min Total 1222 | 21 312 136 473 280 Wait 32 | . 14 12 4 2 Move 976 | 13 268 116 324 255 Hop . | . . . . . Pick Up 14 | . 1 . 12 1 Fast Attach 13 | . 2 . 10 1 Attach 12 | . . . 10 2 Detach 7 | . 1 . 6 . Swap 20 | . 1 1 11 7 Drop 23 | . 4 1 16 2 Fire 111 | 8 20 3 73 7 Melee . | . . . . . Ram . | . . . . . Kick 6 | . 1 3 2 . Crush 8 | . . . 5 3 Escape Stasis . | . . . . . Rewire . | . . . . . Trap . | . . . . . Miscellaneous . | . . . . . Route ------- -11/Scrapyard -10/Materials (discovered 2 exits: *Min x2) -10/Mines -9/Materials (discovered 2 exits: *Min x2) -9/Mines (discovered 1 exit: [*Mat]) History --------- Turn | Location | Event 24 | -11/Scrapyard | Discovered new exit (range 3) 40 | -11/Scrapyard | Entered Materials 312 | -10/Materials | Build established: Mutant 390 | -10/Materials | Identified exit to Mines 441 | -10/Materials | Entered Mines 461 | -10/Mines | Assisted by bots powering up and referring to "LRC-V3" 581 | -10/Mines | Discovered new exit (range 9) 607 | -10/Mines | Entered Materials 607 | -9/Materials | Accompanied by 2 allies 607 | -9/Materials | Evolved 2 slots: Propulsion x1, Utility x1 1221 | -9/Materials | Core integrity fell below 50% 1229 | -9/Materials | Lost 5 parts (1p1n1u2w) 1248 | -9/Materials | Discovered new exit (range 14) 1309 | -9/Materials | Identified exit to Mines 1370 | -9/Materials | Entered Mines 1502 | -9/Mines | Discovered new exit (range 15) 1588 | -9/Mines | Assembled infested the area 1661 | -9/Mines | Build established: Scavenger-Mutant 1708 | -9/Mines | Core integrity fell below 20% 1735 | -9/Mines | Destroyed 11 combat bots 1742 | -9/Mines | Destroyed by as-67426 with Assembled Heavy Rifle Last Messages --------------- 01702_ as-87764 destroyed. 01703_ The unstable cave ceiling collapses. 01710_ as-79876 destroyed. 01710_ Ion Engine destroyed. 01710_ Destroyed Ion Engine. 01710_ as-73582 destroyed. 01710_ as-32975 destroyed. 01710_ Destroyed Asb. Blade. 01711_ The unstable cave ceiling collapses. 01714_ as-89395 destroyed. 01714_ Rocket Launcher destroyed. 01714_ Destroyed Rocket Launcher. 01714_ Lgt. Armor Plating destroyed. 01715_ The unstable cave ceiling collapses. 01721_ Dropped Hcp. Storage Unit. 01722_ The unstable cave ceiling collapses. 01725_ Acquired 84 matter. 01726_ Extracted 50 matter. 01726_ Acquired 12 matter. [Achievement: Back For More] Map ----- +----------------------------------------------------+ | ##### ## ###?????? #??????????????????? | | ##?### #### ##?????? ????????????????????? | | ############ ##??????? ?????????????????????? | | ########### ######### ##### ???????????????? | | ### ###### ########## ###### ### ?????????? | | ## ##### # ## #*### ###????????? | | # ### ######## * %###????????? | | ######### ## * ##????????? | | ## ###??### # * # # * % ##????????? | | ######## ######## %[!! % % %= ###????????? | | ##################### ! ##?????????? | | ####????####### ### # % *###?????????? | | ????????????## ==%= #%==$ ##??????? | | ????????????## " # # # ## ##?## ##??????? | | ????????????## #### ###########?## ##??????? | | ????????????## ! ###########????????????? | | ????????????### = ! * ##?????????????????????? | | ????????????############# ##?????????????????????? | | ?????????????############ ##?????????????????????? | | ???????????????######??## ##?????????????????????? | | ??????????????#######?### ##?????????????????????? | | ??????????????### ###### ###????????????????????? | | ??????????????## ##### ####???????????????????? | | ??????????????### #### ####??????????????????? | | ?????????????#### #### ###??????????????????? | | ##???????????### #####a @ $ ##??????????????????? | | ##??????????### #### ##??????????????????? | | ###?????????### ## ###??????????????????? | | ###?????????## a ####??????????????????? | | ###????????## #######???????????????????? | | ###???????### #######????????????????????? | | ##???????##### ###????????????????????????? | | ?? ?????##### ##?????????????????????????? | | ??######??????? ## ##?????????????????????????? | | ??######????????### ###?????????????????????????? | | ????????????????########?????????????????????????? | | ?????????????????######??????????????????????????? | | ?????????????????????????????????????????????????? | | ?????????????????????????????????????????????????? | | ?????????????????????????????????????????????????? | | ?????????????????????????????????????????????????? | | ?????????????????????????????????????????????????? | | ?????????????????????????????????????????????????? | | ?????????????????????????????????????????????????? | | ?????????????????????????????????????????????????? | | ?????????????????????????????????????????????????? | | ?????????????????????????????????????????????????? | | ?""?????????????????????????????????????????????? | | """ ????????????????????????????????????????????? | | """ ????????????????????????????????????????? | +----------------------------------------------------+ Best States ------------- Heat Dissipation 28 Energy Generation 12 Energy Capacity 265 Matter Stores 300 Matter Capacity 300 Sight Range 16 Robot Scan Range 14 Terrain Scan Density 10 ECM Strength 1 Armor Coverage 150 Evasion (%) 63 Recoil Reduction 3 Item Schematics ----------------- None Robot Schematics ------------------ None Fabricated ------------ Nothing Repaired ---------- Nothing Alien Tech Used ----------------- None Achievements -------------- Back For More Challenges ------------ None Game ------ Seed HeavyPhysicsGuard Manual? 0 Play Time 00:20:36 Cumulative 25.8 hours Start 2025.05.12 @ 17:23:11 End 2025.05.12 @ 17:43:46 Sessions 1 Manual Loads 0 Difficulty Rogue Special Mode None Game No. 50 Rogue 50 Adventurer 0 Explorer 0 Win Type - Total 0 Types 0/0/0/0/0/0/0/0/0/0 Lore% 16 Gallery% 24 Achievement% 32 Wizard Run 0 Options --------- Layout 0 ASCII 0 Keyboard 0 Movement Numpad Keybinds 0 Fullscreen 2 Font 24/Proggy Map View 76x50 Zoom Use 0% Tactical HUD 1 Map Filters NONE Filters NONE Steam 1 RUN: 2b878e2e-d108-4085-b2bc-ac2395db4dbf